Workbook

Sheet Смаково
A1: Школа | C1: МОБУ СОШ д. Смаково | F1: Утвердил: | G1: должность | H1: Индивидуальный предприниматель
A2: Типовое примерное меню приготавливаемых блюд | G2: фамилия | H2: Бикташева С.В.
A3: Возрастная категория | E3: 7-11 лет | G3: дата
A5: Неделя | B5: День недели | C5: Прием пищи | D5: Раздел меню | E5: Блюда | F5: Вес блюда, г | G5: Белки | H5: Жиры | I5: Углеводы | J5: Калорийность | K5: № рецептуры | L5: Цена
A6: 1 | B6: 1 | C6: Завтрак | D6: гор.блюдо | E6: Котлета куриная с томатным соусом | F6: 100 | G6: 11.12 | H6: 9 | I6: 9 | J6: 202.89 | K6: 182 | L6: 40.6
D7: гор.напиток | E7: Какао с молоком | F7: 200 | G7: 3.3 | H7: 3.1 | I7: 13.6 | J7: 94 | K7: 685 | L7: 9.5
D8: хлеб | E8: Хлеб пшеничный обогощенный йодированным белком | F8: 60 | G8: 4 | H8: 0.6 | I8: 29.16 | J8: 146.4 | K8: 3 | L8: 10.4
D9: хлеб | K9: 7 | L9: 9
D10: хлеб | E10: Макаронные изделия отварные | F10: 150 | G10: 5.49 | H10: 3.9 | I10: 32.8 | J10: 191.6 | K10: 306 | L10: 13
D13: итого | F13: =SUM(F6:F12) -> 510 | G13: =SUM(G6:G12) -> 23.91 | H13: 16.6 | I13: 84.56 | J13: 634.89 | L13: =SUM(L6:L12) -> 82.5
A14: =A6 -> 1 | B14: =B6 -> 1 | C14: Обед | D14: закуска
D15: 1 блюдо
D16: 2 блюдо
D17: гарнир
D18: напиток
D19: хлеб бел.
D20: хлеб черн.
D23: итого
A24: =A6 -> 1 | B24: =B6 -> 1 | C24: Итого за день:
A25: 1 | B25: 2 | C25: Завтрак | D25: гор.блюдо | E25: Каша овсяная "Геркулесовая" молочная | F25: 205 | G25: 7.69 | H25: 9.54 | I25: 32.2 | J25: 245.16 | K25: 87 | L25: 44.8
D26: гор. блюдо | E26: Яйцо отварное | F26: 40 | G26: 6.86 | H26: 6.21 | I26: 0.38 | J26: 84.78 | K26: 212 | L26: 17.3
D27: гор.напиток | E27: Чай с сахаром | F27: 200 | G27: 0 | H27: 10 | I27: 40 | J27: 40 | K27: 278 | L27: 10
D28: хлеб | E28: Хлеб пшеничный обогощенный йодированным белком | F28: 60 | G28: 4 | H28: 0.6 | I28: 29.2 | J28: 146 | K28: 3 | L28: 10.4
D32: итого | F32: =SUM(F25:F31) -> 505 | G32: =SUM(G25:G31) -> 18.55 | H32: 26.35 | I32: 101.78 | J32: 515.94 | L32: =SUM(L25:L31) -> 82.5
A33: =A25 -> 1 | B33: =B25 -> 2 | C33: Обед | D33: закуска
D34: 1 блюдо
D35: 2 блюдо
D36: гарнир
D37: напиток
D38: хлеб бел.
D39: хлеб черн.
D42: итого
A43: =A25 -> 1 | B43: =B25 -> 2 | C43: Итого за день:
A44: 1 | B44: 3 | C44: Завтрак | D44: гор.блюдо | E44: Плов из мяса птицы (филе) | F44: 180 | G44: 18.1 | H44: 22.65 | I44: 30.07 | J44: 399.18 | K44: 82 | L44: 40.09
D45: гор. блюдо | E45: Салат из белокачанной капусты | F45: 60 | G45: 1.2 | H45: 2.7 | I45: 6.1 | J45: 29.2 | K45: 179 | L45: 19.91
D46: гор.напиток | E46: Чай с лимоном с сахаром | F46: 200 | G46: 1.4 | H46: 1.4 | I46: 11.2 | J46: 61 | K46: 686 | L46: 12.1
D47: хлеб | E47: Хлеб пшеничный обогощенный йодированным белком | F47: 60 | G47: 4 | H47: 0.6 | I47: 29.2 | J47: 146 | K47: 3 | L47: 10.4
D48: фрукты
D51: итого | F51: =SUM(F44:F50) -> 500 | G51: =SUM(G44:G50) -> 24.7 | H51: 27.35 | I51: 76.57 | J51: 635.38 | L51: =SUM(L44:L50) -> 82.5
A52: =A44 -> 1 | B52: =B44 -> 3 | C52: Обед | D52: закуска
D53: 1 блюдо
D54: 2 блюдо
D55: гарнир
D56: напиток
D57: хлеб бел.
D58: хлеб черн.
D61: итого
A62: =A44 -> 1 | B62: =B44 -> 3 | C62: Итого за день:
A63: 1 | B63: 4 | C63: Завтрак | D63: гор.блюдо | E63: Тефтели из говядины с рисом с томатным соусом | F63: 100 | G63: 8.4 | H63: 13.28 | I63: 10.07 | J63: 193.38 | K63: 205 | L63: 43.4
D64: гор. блюдо | E64: Каша гречневая вязкая | F64: 150 | G64: 5.7 | H64: 37.8 | I64: 240 | J64: 8.6 | K64: 175 | L64: 19.2
D65: гор.напиток | E65: Кофейный напиток на молоке | F65: 200 | G65: 8.6 | H65: 5.7 | I65: 37.8 | J65: 240 | K65: 685 | L65: 9.5
D66: хлеб | E66: Хлеб пшеничный обогощенный йодированным белком | F66: 50 | G66: 3.3 | H66: 0.5 | I66: 24.3 | J66: 122 | K66: 3 | L66: 10.4
D70: итого | F70: =SUM(F63:F69) -> 500 | G70: =SUM(G63:G69) -> 26 | H70: 57.28 | I70: 312.17 | J70: 563.98 | L70: =SUM(L63:L69) -> 82.5
A71: =A63 -> 1 | B71: =B63 -> 4 | C71: Обед | D71: закуска
D72: 1 блюдо
D73: 2 блюдо
D74: гарнир
D75: напиток
D76: хлеб бел.
D77: хлеб черн.
D80: итого
A81: =A63 -> 1 | B81: =B63 -> 4 | C81: Итого за день:
A82: 1 | B82: 5 | C82: Завтрак | D82: гор.блюдо | E82: Каша молочная "Дружба" | F82: 205 | G82: 6.2 | H82: 8.44 | I82: 32.77 | J82: 242 | K82: 302 | L82: 39.1
D83: гор.напиток | E83: Чай с сахаром | F83: 200 | G83: 0.1 | H83: 0 | I83: 9.1 | J83: 35 | K83: 648 | L83: 12
D84: хлеб | E84: Йогурт для детского питания | F84: 100 | G84: 3.2 | H84: 3.2 | I84: 4.5 | J84: 62 | K84: 27 | L84: 9
D85: хлеб | E85: Хлеб пшеничный обогощенный йодированным белком | F85: 50 | G85: 2.4 | H85: 0.4 | I85: 19.4 | J85: 98 | K85: 3 | L85: 10.4
D86: фрукты | E86: Фрукт свежий | F86: 140 | G86: 0.56 | H86: 0.56 | I86: 13.72 | J86: 93.8 | K86: 1 | L86: 12
D89: итого | F89: =SUM(F82:F88) -> 695 | G89: =SUM(G82:G88) -> 12.46 | H89: 12.6 | I89: 79.49 | J89: 530.8 | L89: =SUM(L82:L88) -> 82.5
A90: =A82 -> 1 | B90: =B82 -> 5 | C90: Обед | D90: закуска
D91: 1 блюдо
D92: 2 блюдо
D93: гарнир
D94: напиток
D95: хлеб бел.
D96: хлеб черн.
D97: булочное
D99: итого
A100: =A82 -> 1 | B100: =B82 -> 5 | C100: Итого за день:
A101: 2 | B101: 1 | C101: Завтрак | D101: гор.блюдо | E101: Фрикадельки мясные с томатным соусом | F101: 100 | G101: 10.07 | H101: 13 | I101: 10.37 | J101: 199 | K101: 197 | L101: 35.6
D102: гор. напиток | E102: Чай с сахаром | F102: 200 | G102: 0 | H102: 0 | I102: 9.9 | J102: 40 | K102: 685 | L102: 9.5
D103: хлеб | E103: Рис отварной | F103: 150 | G103: 3.6 | H103: 6 | I103: 36.8 | J103: 219 | K103: 27 | L103: 9
D104: хлеб | E104: Хлеб пшеничный обогащенный йодированным белком | F104: 50 | G104: 3.3 | H104: 0.5 | I104: 24.3 | J104: 122 | K104: 3 | L104: 10.4
D105: сладкое | K105: 399 | L105: 18
D108: итого | F108: =SUM(F101:F107) -> 500 | G108: =SUM(G101:G107) -> 16.97 | H108: 19.5 | I108: 81.37 | J108: 580 | L108: =SUM(L101:L107) -> 82.5
A109: =A101 -> 2 | B109: =B101 -> 1 | C109: Обед | D109: закуска
D110: 1 блюдо
D111: 2 блюдо
D112: гарнир
D113: напиток
D114: хлеб бел.
D115: хлеб черн.
D118: итого
A119: =A101 -> 2 | B119: =B101 -> 1 | C119: Итого за день:
A120: 2 | B120: 2 | C120: Завтрак | D120: гор.блюдо | E120: Жаркое по-домашнему с птицей | F120: 180 | G120: 17.37 | H120: 17.91 | I120: 17.01 | J120: 330 | K120: 106 | L120: 42.56
D121: гор. блюдо | K121: 171 | L121: 17.54
D122: гор.напиток | E122: Какао с молоком | F122: 200 | G122: 3.3 | H122: 3.1 | I122: 1.3 | J122: 94 | K122: 692 | L122: 12
D123: хлеб | E123: Хлеб пшеничный обогощенный йодированным белком | F123: 60 | G123: 4 | H123: 0.6 | I123: 29.2 | J123: 146 | K123: 3 | L123: 10.4
E124: Свекла отварная порционно | F124: 60 | G124: 0.9 | H124: 0.1 | I124: 5.9 | J124: 28
D127: итого | F127: =SUM(F120:F126) -> 500 | G127: =SUM(G120:G126) -> 25.57 | H127: 21.71 | I127: 53.41 | J127: 598 | L127: =SUM(L120:L126) -> 82.5
A128: =A120 -> 2 | B128: =B120 -> 2 | C128: Обед | D128: закуска
D129: 1 блюдо
D130: 2 блюдо
D131: гарнир
D132: напиток
D133: хлеб бел.
D134: хлеб черн.
D137: итого
A138: =A120 -> 2 | B138: =B120 -> 2 | C138: Итого за день:
A139: 2 | B139: 3 | C139: Завтрак | D139: гор.блюдо | E139: Тефтели из говядины с рисом с томатным соусом | F139: 100 | G139: 8.4 | H139: 13.28 | I139: 10.07 | J139: 193.38 | K139: 131 | L139: 51.1
D140: закуска | K140: 43 | L140: 11.5
D141: гор.напиток | E141: Кисель витаминизированный | F141: 200 | G141: 0 | H141: 0 | I141: 20 | J141: 76 | K141: 685 | L141: 9.5
D142: хлеб | E142: Хлеб пшеничный обогощенный йодированным белком | F142: 50 | G142: 3.3 | H142: 0.5 | I142: 24.3 | J142: 121 | K142: 3 | L142: 10.4
E143: Макаронные изделия отварные | F143: 150 | G143: 5.7 | H143: 5.5 | I143: 36.5 | J143: 219
D146: итого | F146: =SUM(F139:F145) -> 500 | G146: =SUM(G139:G145) -> 17.4 | H146: 19.28 | I146: 90.87 | J146: 609.38 | L146: =SUM(L139:L145) -> 82.5
A147: =A139 -> 2 | B147: =B139 -> 3 | C147: Обед | D147: закуска
D148: 1 блюдо
D149: 2 блюдо
D150: гарнир
D151: напиток
D152: хлеб бел.
D153: хлеб черн.
D156: итого
A157: =A139 -> 2 | B157: =B139 -> 3 | C157: Итого за день:
A158: 2 | B158: 4 | C158: Завтрак | D158: гор.блюдо | E158: Филе птицы тушеное в соусе с овощами | F158: 90 | G158: 13.7 | H158: 14.8 | I158: 5.3 | J158: 232.1 | K158: 469 | L158: 44.8
D159: гор.блюдо | E159: Каша гречневая рассыпчатая | F159: 150 | G159: 8.6 | H159: 5.7 | I159: 37.8 | J159: 240 | K159: 212 | L159: 17.3
D160: гор.напиток | E160: Чай с сахаром | F160: 200 | G160: 0.19 | H160: 0 | I160: 13 | J160: 50.4 | K160: 278 | L160: 10
D161: хлеб | E161: Хлеб пшеничный обогощенный йодированным белком | F161: 50 | G161: 3.3 | H161: 0.5 | I161: 24.3 | J161: 122 | K161: 3 | L161: 10.4
E162: Салат из белокачанной капусты | F162: 60 | G162: 1.2 | H162: 2.7 | I162: 6.1 | J162: 53.6
D165: итого | F165: =SUM(F158:F164) -> 550 | G165: =SUM(G158:G164) -> 26.99 | H165: 23.7 | I165: 86.5 | J165: 698.1 | L165: =SUM(L158:L164) -> 82.5
A166: =A158 -> 2 | B166: =B158 -> 4 | C166: Обед | D166: закуска
D167: 1 блюдо
D168: 2 блюдо
D169: гарнир
D170: напиток
D171: хлеб бел.
D172: хлеб черн.
D175: итого
A176: =A158 -> 2 | B176: =B158 -> 4 | C176: Итого за день:
A177: 2 | B177: 5 | C177: Завтрак | D177: гор.блюдо | E177: Каша пшенная молочная | F177: 200 | G177: 4.9 | H177: 5.1 | I177: 23.8 | J177: 193 | K177: 196 | L177: 27.82
D178: гор.блюдо | K178: 173 | L178: 19.2
D179: гор.напиток | E179: Напиток витаминизированный "Витошка" | F179: 200 | G179: 0 | H179: 0 | I179: 19 | J179: 80 | K179: 686 | L179: 12.1
D180: хлеб | E180: Хлеб пшеничный обогащенный йодированный белком | F180: 50 | G180: 3.3 | H180: 0.5 | I180: 24.3 | J180: 122 | K180: 3 | L180: 8.38
D181: сладкое | K181: 8 | L181: 15
E182: Фрукт свежий | F182: 100 | G182: 0.4 | H182: 0.4 | I182: 9.8 | J182: 67
D184: итого | F184: =SUM(F177:F183) -> 550 | G184: =SUM(G177:G183) -> 8.6 | H184: 5.6 | I184: 76.9 | J184: 462 | L184: =SUM(L177:L183) -> 82.5
A185: =A177 -> 2 | B185: =B177 -> 5 | C185: Обед | D185: закуска
D186: 1 блюдо
D187: 2 блюдо
D188: гарнир
D189: напиток
D190: хлеб бел.
D191: хлеб черн.
D194: итого
A195: =A177 -> 2 | B195: =B177 -> 5 | C195: Итого за день:
